fUST/lending_fUST_20240808
["ID","MTS","AMOUNT","RATE_DAILY","PERIOD"]
[334414301,1723061448317,-313.029147,0.00029312,7]
[334414302,1723061448326,-313.029147,0.00029312,7]
[334414303,1723061448336,-313.029147,0.00029312,7]
[334414304,1723061448346,-313.029147,0.00029312,7]
[334414305,1723061448355,-313.029147,0.00029312,7]
[334414306,1723061448365,-313.029147,0.00029312,7]
[334414307,1723061448375,-151.0,0.00029312,7]
[334414308,1723061448385,-151.0,0.00029312,7]
[334414309,1723061448395,-42420.75027634,0.00029313,2]
[334414310,1723061448404,-151.0,0.00029313,7]
[334414311,1723061448413,-176.229671,0.00029313,7]
[334414312,1723061448423,-176.528033,0.00029313,7]
[334414313,1723061448433,-176.528033,0.00029313,7]
[334414314,1723061448443,-176.528033,0.00029313,7]
[334414315,1723061448453,-176.528033,0.00029313,7]
[334414316,1723061448463,-176.528033,0.00029313,7]
[334414317,1723061448474,-176.528029,0.00029313,7]
[334414318,1723061448485,-1000.0,0.00029741,2]
[334414319,1723061448495,-3000.0,0.000298,2]
[334414320,1723061448506,-150.0,0.000298,2]
[334414321,1723061448516,-1000.0,0.00029808,2]
[334414322,1723061448526,-3000.0,0.0002981,2]
[334414323,1723061448537,-5133.419754,0.0002982,2]
[334414324,1723061448547,-1048.30761548,0.0002984,2]
[334414325,1723061448556,-150.01,0.00029871,2]
[334414326,1723061448566,-150.5,0.0002988,120]
[334414327,1723061448576,-13123.1277925,0.0002988,3]
[334414328,1723061448587,-150.5,0.0002989,120]
[334414329,1723061448596,-35.15513301,0.0002989,120]
[334414330,1723061448610,-150.25486699,0.0002989,120]
[334414331,1723061448619,-1656.92965649,0.0002989,3]
[334414366,1723062633410,-171.015149,0.00014247,2]
[334414367,1723062633420,-2656.49073813,0.00028282,2]
[334414428,1723062643394,-2600.63564475,0.00027283,2]
[334414495,1723062646434,-1000.0,0.00027283,2]
[334414546,1723063833177,-21279.3643552,0.00026409,2]
[334414548,1723063833187,-484.63498321,0.00027183,2]
[334414550,1723063833198,-250.04869026,0.00027283,2]
[334414552,1723063833208,-2108.7693428,0.00027283,2]
[334414554,1723063833218,-1492.75012023,0.00027283,2]
[334414556,1723063833228,-347.62240207,0.00027283,2]
[334414592,1723063838680,-2587.47009167,0.00027283,2]
[334414593,1723063838690,-1542.32420497,0.00027283,2]
[334414594,1723063838700,-869.54525531,0.00027283,2]
[334414595,1723063838710,-484.63498315,0.00028882,2]
[334414596,1723063838719,-500.0,0.00029,120]
[334414597,1723063838728,-500.0,0.00029,120]
[334414598,1723063838737,-500.0,0.00029,120]
[334414599,1723063838747,-3799.34805763,0.00029,2]
[334414714,1723064945183,-150.0,0.00024881,2]
[334414715,1723064945205,-38.95773464,0.00024881,2]
[334414755,1723065033492,-267.91026105,0.00024881,2]
[334414766,1723065038920,-601.63499426,0.00024881,2]
[334414767,1723065038930,-601.36826536,0.00024881,2]
[334414768,1723065038939,-1409.0,0.00025128,2]
[334414769,1723065038948,-249.67101457,0.00028886,2]
[334414770,1723065038959,-363.47623738,0.00028887,2]
[334414771,1723065038968,-249.67101457,0.00028892,2]
[334414772,1723065038979,-249.67101457,0.00028897,2]
[334414773,1723065038990,-1261.75742258,0.00028898,2]
[334414774,1723065039001,-1261.75742254,0.00028967,2]
[334414775,1723065039012,-1638.81,0.00028977,3]
[334414776,1723065039023,-1580.18,0.00028977,3]
[334414777,1723065039035,-1316.82,0.00028977,3]
[334414778,1723065039045,-1097.35,0.00028978,3]
[334414779,1723065039056,-835.19,0.00028985,7]
[334414780,1723065039065,-500.0,0.00028985,7]
[334414781,1723065039075,-10211.54,0.00028985,7]
[334414782,1723065039085,-500.0,0.00028985,7]
[334414783,1723065039094,-6013.31,0.00028985,7]
[334414784,1723065039103,-2603.16,0.00028985,7]
[334414785,1723065039113,-500.0,0.00028985,7]
[334414786,1723065039122,-1336.79,0.00028985,7]
[334414787,1723065039131,-1360.18,0.00028985,7]
[334414788,1723065039141,-19346.57096227,0.00028985,21]
[334414789,1723065039151,-35434.259483,0.00028986,3]
[334414790,1723065039160,-293.36687216,0.00028986,2]
[334414791,1723065039172,-500.0,0.00028986,2]
[334414793,1723065039181,-500.0,0.00028986,2]
[334414795,1723065039191,-193.17925603,0.00028986,2]
[334414796,1723065039201,-500.0,0.00028986,2]
[334414797,1723065039210,-500.0,0.00028986,2]
[334414798,1723065039220,-23622.8396553,0.00028987,3]
[334414799,1723065039229,-28312.10417084,0.00028988,21]
[334414800,1723065039238,-1637.27,0.00028988,7]
[334414802,1723065039247,-654.53,0.00028988,7]
[334414804,1723065039257,-5923.36,0.00028988,7]
[334414806,1723065039266,-1880.4,0.00028988,7]
[334414808,1723065039275,-1625.03,0.00028988,7]
[334414810,1723065039285,-831.479607,0.00028988,7]
[334414812,1723065039294,-831.479607,0.00028988,7]
[334414814,1723065039303,-657.64,0.00028988,7]
[334414816,1723065039312,-894.02,0.00028988,7]
[334414818,1723065039321,-500.0,0.00028988,7]
[334414820,1723065039330,-3221.95,0.00028988,7]
[334414822,1723065039339,-47245.6793107,0.00028988,3]
[334414824,1723065039349,-167032.98411954,0.00028996,2]
[334414826,1723065039358,-831.479607,0.00028996,7]
[334414828,1723065039368,-831.479607,0.00028996,7]
[334414830,1723065039378,-500.0,0.00028996,7]
[334414832,1723065039388,-151.0,0.00028997,7]
[334414834,1723065039398,-3799.74,0.00028997,7]
[334414836,1723065039407,-2298.2,0.00028997,7]
[334414838,1723065039419,-500.0,0.00028997,7]
[334414840,1723065039430,-2266.93,0.00028997,7]
[334414842,1723065039440,-500.0,0.00028997,7]
[334414844,1723065039449,-2723.93,0.00028997,7]
[334414846,1723065039459,-2933.85,0.00028997,7]
[334414848,1723065039469,-3297.31,0.00028997,7]
[334414850,1723065039478,-500.0,0.00028997,7]
[334414852,1723065039487,-500.0,0.00028997,7]
[334414853,1723065039496,-1063.1,0.00028997,7]
[334414854,1723065039506,-14012.69,0.00028997,7]
[334414855,1723065039515,-500.0,0.00028997,7]
[334414857,1723065039524,-500.0,0.00028997,7]
[334414859,1723065039534,-3932.47,0.00028997,7]
[334414861,1723065039543,-1277.52,0.00028997,7]
[334414863,1723065039553,-2569.26,0.00028997,7]
[334414865,1723065039562,-500.0,0.00028997,7]
[334414867,1723065039571,-779.31,0.00028997,7]
[334414869,1723065039581,-1283.41,0.00028997,7]
[334414871,1723065039590,-2023.96,0.00028997,7]
[334414873,1723065039601,-500.0,0.00028997,7]
[334414876,1723065039612,-1310.56,0.00028997,7]
[334414878,1723065039622,-818.98,0.00028997,7]
[334414879,1723065039631,-5692.33,0.00028997,7]
[334414880,1723065039640,-967.62,0.00028997,7]
[334414881,1723065039652,-3135.86,0.00028997,7]
[334414882,1723065039662,-500.0,0.00028997,7]
[334414883,1723065039673,-500.0,0.00028997,7]
[334414884,1723065039683,-831.479607,0.00028997,7]
[334414885,1723065039692,-831.479607,0.00028997,7]
[334414886,1723065039702,-1182.71,0.00028997,7]
[334414887,1723065039711,-831.479607,0.00028997,7]
[334414888,1723065039720,-831.479607,0.00028997,7]
[334414889,1723065039730,-831.479607,0.00028997,7]
[334414890,1723065039739,-831.479607,0.00028997,7]
[334414891,1723065039749,-831.479607,0.00028997,7]
[334414892,1723065039760,-831.479607,0.00028997,7]
[334414893,1723065039769,-831.479607,0.00028997,7]
[334414894,1723065039778,-831.479607,0.00028997,7]
[334414895,1723065039789,-604.74,0.00028997,7]
[334414896,1723065039799,-1476.77,0.00028997,7]
[334414897,1723065039810,-500.0,0.00028997,7]
[334414898,1723065039821,-500.0,0.00028997,7]
[334414899,1723065039830,-500.0,0.00028997,7]
[334414900,1723065039839,-500.0,0.00028997,7]
[334414901,1723065039850,-500.0,0.00028997,7]
[334414902,1723065039859,-500.0,0.00028997,7]
[334414903,1723065039868,-500.0,0.00028997,7]
[334414904,1723065039877,-500.0,0.00028998,7]
[334414905,1723065039887,-500.0,0.00028998,7]
[334414906,1723065039897,-500.0,0.00028998,7]
[334414907,1723065039906,-500.0,0.00028998,7]
[334414908,1723065039917,-500.0,0.00028998,7]
[334414909,1723065039931,-1106.75,0.00028998,7]
[334414910,1723065039942,-631.24154233,0.00028998,7]
[334414911,1723065039955,-500.0,0.00028998,7]
[334414912,1723065039966,-500.0,0.00028998,7]
[334414913,1723065039977,-869.76,0.00028998,7]
[334414914,1723065039987,-500.0,0.00028998,7]
[334414915,1723065040000,-500.0,0.00028998,7]
[334414916,1723065040013,-500.0,0.00028998,7]
[334414917,1723065040022,-500.0,0.00028998,7]
[334414918,1723065040031,-500.97354587,0.00028998,7]
[334414919,1723065040044,-500.0,0.00028998,7]
[334414920,1723065040054,-500.0,0.00028998,7]
[334414921,1723065040065,-500.0,0.00028998,7]
[334414922,1723065040076,-500.0,0.00028998,7]
[334414923,1723065040086,-500.0,0.00028998,7]
[334414924,1723065040096,-500.0,0.00028998,7]
[334414925,1723065040105,-500.0,0.00028998,7]
[334414926,1723065040117,-500.0,0.00028998,7]
[334414927,1723065040126,-337.33153932,0.00028998,7]
[334414928,1723065040136,-622.13,0.00028998,7]
[334414929,1723065040146,-500.0,0.00028998,7]
[334414931,1723065040156,-500.0,0.00028998,7]
[334414932,1723065040165,-500.0,0.00028998,7]
[334414933,1723065040176,-1271.52,0.00028998,7]
[334414934,1723065040186,-500.0,0.00028998,7]
[334414935,1723065040196,-500.0,0.00028998,7]
[334414936,1723065040206,-500.0,0.00028998,7]
[334414937,1723065040216,-500.0,0.00028998,7]
[334414938,1723065040226,-500.0,0.00028998,7]
[334414939,1723065040236,-500.0,0.00028998,7]
[334414940,1723065040247,-500.0,0.00028998,7]
[334414941,1723065040256,-500.0,0.00028998,7]
[334414942,1723065040266,-500.0,0.00028998,7]
[334414943,1723065040276,-500.0,0.00028998,7]
[334414944,1723065040286,-500.0,0.00028998,7]
[334414945,1723065040296,-500.0,0.00028998,7]
[334414946,1723065040307,-500.0,0.00028998,7]
[334414947,1723065040316,-501.06654995,0.00028998,7]
[334414948,1723065040327,-403.93756262,0.00028998,7]
[334414949,1723065040338,-200.1595445,0.00028998,7]
[334414950,1723065040349,-500.0,0.00028998,7]
[334414951,1723065040361,-500.0,0.00028998,7]
[334414952,1723065040372,-200.0,0.00028998,7]
[334414953,1723065040383,-500.0,0.00028998,7]
[334414954,1723065040394,-500.0,0.00028998,7]
[334414955,1723065040405,-500.0,0.00028998,7]
[334414956,1723065040414,-644.08717906,0.00028998,7]
[334414957,1723065040425,-500.0,0.00028998,7]
[334414958,1723065040434,-500.40822123,0.00028998,7]
[334414959,1723065040443,-500.0,0.00028998,7]
[334414960,1723065040453,-500.0,0.00028998,7]
[334414961,1723065040462,-500.0,0.00028998,7]
[334414962,1723065040471,-500.0,0.00028998,7]
[334414963,1723065040480,-500.0,0.00028998,7]
[334414964,1723065040489,-500.0,0.00028998,7]
[334414965,1723065040499,-500.0,0.00028998,7]
[334414966,1723065040510,-846.02,0.00028998,7]
[334414967,1723065040520,-500.0,0.00028998,7]
[334414968,1723065040531,-500.0,0.00028998,7]
[334414969,1723065040541,-500.0,0.00028998,7]
[334414970,1723065040551,-500.0,0.00028998,7]
[334414971,1723065040561,-1378.54,0.00028998,7]
[334414972,1723065040572,-500.0,0.00028998,7]
[334414973,1723065040582,-502.52953323,0.00028998,7]
[334414974,1723065040593,-500.0,0.00028998,7]
[334414975,1723065040602,-500.0,0.00028998,7]
[334414976,1723065040612,-500.0,0.00028998,7]
[334414977,1723065040622,-500.0,0.00028998,7]
[334414978,1723065040631,-966.07,0.00028998,7]
[334414979,1723065040642,-500.0,0.00028998,7]
[334414980,1723065040652,-500.0,0.00028998,7]
[334414981,1723065040663,-500.45600032,0.00028998,7]
[334414982,1723065040674,-751.18,0.00028998,7]
[334414983,1723065040684,-500.0,0.00028998,7]
[334414984,1723065040694,-540.22347395,0.00028998,7]
[334414985,1723065040703,-771.9,0.00028998,7]
[334414986,1723065040713,-500.0,0.00028998,7]
[334414988,1723065040722,-500.0,0.00028998,7]
[334414990,1723065040732,-845.83,0.00028998,7]
[334414991,1723065040742,-1057.35,0.00028998,7]
[334414992,1723065040751,-500.0,0.00028998,7]
[334414993,1723065040761,-500.0,0.00028998,7]
[334414994,1723065040772,-500.0,0.00028998,7]
[334414995,1723065040782,-592.16,0.00028998,7]
[334414996,1723065040791,-500.0,0.00028998,7]
[334414997,1723065040801,-500.0,0.00028998,7]
[334414998,1723065040810,-500.0,0.00028998,7]
[334414999,1723065040820,-898.42,0.00028998,7]
[334415000,1723065040829,-500.0,0.00028998,7]
[334415001,1723065040839,-542.95268668,0.00028998,7]
[334415002,1723065040848,-500.0,0.00028998,7]
[334415003,1723065040858,-500.0,0.00028998,7]
[334415004,1723065040867,-538.74969551,0.00028998,7]
[334415005,1723065040876,-500.0,0.00028998,7]
[334415006,1723065040887,-646.74,0.00028998,7]
[334415007,1723065040896,-524.44,0.00028998,7]
[334415008,1723065040905,-500.0,0.00028998,7]
[334415009,1723065040923,-500.0,0.00028998,7]
[334415010,1723065040935,-553.87,0.00028998,7]
[334415011,1723065040945,-500.0,0.00028998,7]
[334415012,1723065040957,-1371.55,0.00028998,7]
[334415013,1723065040967,-563.32,0.00028998,7]
[334415014,1723065040977,-500.0,0.00028998,7]
[334415015,1723065040987,-520.96738811,0.00028998,7]
[334415016,1723065041002,-500.0,0.00028998,7]
[334415017,1723065041012,-500.0,0.00028998,7]
[334415018,1723065041023,-500.0,0.00028998,7]
[334415019,1723065041032,-1579.43,0.00028998,7]
[334415020,1723065041043,-500.0,0.00028998,7]
[334415021,1723065041052,-500.0,0.00028998,7]
[334415022,1723065041062,-500.0,0.00028998,7]
[334415023,1723065041072,-500.97142327,0.00028998,7]
[334415024,1723065041081,-500.0,0.00028998,7]
[334415025,1723065041092,-500.0,0.00028998,7]
[334415026,1723065041101,-500.0,0.00028998,7]
[334415027,1723065041111,-501.75314947,0.00028998,7]
[334415028,1723065041120,-530.04,0.00028998,7]
[334415029,1723065041130,-500.0,0.00028998,7]
[334415030,1723065041140,-500.0,0.00028998,7]
[334415031,1723065041150,-500.0,0.00028998,7]
[334415032,1723065041161,-500.0,0.00028998,7]
[334415033,1723065041172,-500.0,0.00028998,7]
[334415034,1723065041182,-500.0,0.00028998,7]
[334415035,1723065041192,-500.55305366,0.00028998,7]
[334415036,1723065041201,-500.0,0.00028998,7]
[334415037,1723065041211,-500.0,0.00028998,7]
[334415038,1723065041220,-500.0,0.00028998,7]
[334415039,1723065041231,-500.0,0.00028998,7]
[334415040,1723065041243,-500.0,0.00028998,7]
[334415041,1723065041253,-500.0,0.00028998,7]
[334415042,1723065041262,-1152.83,0.00028998,7]
[334415043,1723065041274,-480.23008436,0.00028998,7]
[334415044,1723065041285,-598.34486443,0.00028998,7]
[334415045,1723065041295,-500.0,0.00028998,7]
[334415046,1723065041305,-500.0,0.00028998,7]
[334415047,1723065041315,-500.0,0.00028998,7]
[334415048,1723065041326,-354.62789311,0.00028998,7]
[334415049,1723065041337,-500.0,0.00028998,7]
[334415050,1723065041347,-500.0,0.00028998,7]
[334415051,1723065041357,-667.83,0.00028998,7]
[334415052,1723065041368,-500.0,0.00028998,7]
[334415053,1723065041379,-500.0,0.00028998,7]
[334415054,1723065041389,-500.0,0.00028998,7]
[334415055,1723065041400,-449.85558613,0.00028998,7]
[334415056,1723065041410,-500.0,0.00028998,7]
[334415057,1723065041422,-580.2,0.00028998,7]
[334415058,1723065041432,-500.0,0.00028998,7]
[334415059,1723065041442,-500.0,0.00028998,7]
[334415060,1723065041452,-500.0,0.00028998,7]
[334415061,1723065041464,-500.0,0.00028998,7]
[334415062,1723065041476,-500.0,0.00028998,7]
[334415063,1723065041488,-500.0,0.00028998,7]
[334415064,1723065041497,-500.0,0.00028998,7]
[334415065,1723065041509,-500.0,0.00028998,7]
[334415066,1723065041519,-500.0,0.00028998,7]
[334415067,1723065041531,-500.0,0.00028998,7]
[334415068,1723065041540,-500.0,0.00028998,7]
[334415069,1723065041551,-522.25,0.00028998,7]
[334415070,1723065041561,-503.66368819,0.00028998,2]
[334415071,1723065041572,-500.0,0.00028998,7]
[334415072,1723065041584,-500.0,0.00028998,7]
[334415073,1723065041594,-192.47619813,0.00028998,7]
[334415074,1723065041605,-500.0,0.00028998,7]
[334415075,1723065041615,-500.0,0.00028998,7]
[334415076,1723065041625,-527.11288338,0.00028998,7]
[334415077,1723065041636,-500.0,0.00028998,7]
[334415078,1723065041647,-500.0,0.00028998,7]
[334415079,1723065041659,-500.0,0.00028998,7]
[334415080,1723065041669,-1382.47,0.00028998,7]
[334415081,1723065041679,-500.0,0.00028998,7]
[334415082,1723065041689,-232.87711132,0.00028998,7]
[334415083,1723065041698,-1210.55,0.00028998,7]
[334415084,1723065041709,-500.0,0.00028998,7]
[334415085,1723065041719,-500.0,0.00028998,7]
[334415086,1723065041729,-500.0,0.00028998,7]
[334415087,1723065041739,-500.0,0.00028998,7]
[334415088,1723065041749,-500.0,0.00028998,7]
[334415089,1723065041759,-500.0,0.00028998,7]
[334415090,1723065041769,-504.16,0.00028998,7]
[334415091,1723065041780,-500.0,0.00028998,7]
[334415092,1723065041791,-500.0,0.00028998,7]
[334415093,1723065041802,-500.0,0.00028998,7]
[334415094,1723065041813,-500.0,0.00028998,7]
[334415095,1723065041824,-526.71203819,0.00028998,7]
[334415096,1723065041837,-518.29535683,0.00028998,7]
[334415097,1723065041847,-500.0,0.00028998,7]
[334415098,1723065041856,-500.0,0.00028998,7]
[334415099,1723065041866,-151.0,0.00028998,7]
[334415100,1723065041875,-151.0,0.00028998,7]
[334415101,1723065041884,-151.0,0.00028998,7]
[334415102,1723065041894,-155.454406,0.00028998,7]
[334415103,1723065041904,-619.12845902,0.00028998,7]
[334415104,1723065041915,-500.0,0.00028998,7]
[334415105,1723065041931,-1896.27,0.00028998,7]
[334415106,1723065041941,-500.0,0.00028998,7]
[334415107,1723065041951,-154.45268599,0.00028998,7]
[334415108,1723065041962,-512.43,0.00028998,7]
[334415109,1723065041971,-500.0,0.00028998,7]
[334415110,1723065041980,-500.0,0.00028998,7]
[334415111,1723065041991,-791.73,0.00028998,7]
[334415112,1723065042002,-500.0,0.00028998,7]
[334415113,1723065042012,-500.0,0.00028998,7]
[334415114,1723065042023,-523.8019494,0.00028998,7]
[334415115,1723065042033,-500.0,0.00028998,7]
[334415116,1723065042044,-500.0,0.00028998,7]
[334415117,1723065042056,-166.92801832,0.00028998,7]
[334415118,1723065042068,-4328.96,0.00028998,7]
[334415119,1723065042077,-556.74644109,0.00028998,7]
[334415120,1723065042087,-500.0,0.00028998,7]
[334415121,1723065042096,-500.0,0.00028998,7]
[334415122,1723065042108,-593.03,0.00028998,7]
[334415123,1723065042118,-474.55475423,0.00028998,7]
[334415124,1723065042127,-500.0,0.00028998,6]
[334415125,1723065042138,-1241.43,0.00028998,7]
[334415126,1723065042148,-1270.57,0.00028998,7]
[334415127,1723065042158,-500.0,0.00028998,7]
[334415128,1723065042171,-500.0,0.00028998,7]
[334415129,1723065042182,-500.0,0.00028998,7]
[334415130,1723065042194,-500.0,0.00028998,7]
[334415131,1723065042204,-282.90586267,0.00028998,7]
[334415132,1723065042215,-500.0,0.00028998,7]
[334415133,1723065042224,-500.0,0.00028998,7]
[334415134,1723065042234,-500.0,0.00028998,7]
[334415135,1723065042245,-500.0,0.00028998,7]
[334415136,1723065042255,-500.0,0.00028998,7]
[334415137,1723065042265,-500.0,0.00028998,7]
[334415138,1723065042278,-500.0,0.00028998,7]
[334415139,1723065042288,-500.0,0.00028998,7]
[334415140,1723065042297,-500.0,0.00028998,7]
[334415141,1723065042307,-500.0,0.00028998,7]
[334415142,1723065042318,-500.0,0.00028998,7]
[334415143,1723065042330,-500.0,0.00028998,7]
[334415144,1723065042340,-558.09442307,0.00028998,7]
[334415145,1723065042352,-730.17,0.00028998,7]
[334415146,1723065042364,-507.68379742,0.00028998,7]
[334415147,1723065042373,-916.96,0.00028998,7]
[334415148,1723065042383,-500.0,0.00028998,7]
[334415149,1723065042393,-782.75,0.00028998,7]
[334415150,1723065042403,-821.56,0.00028998,7]
[334415151,1723065042413,-2742.48,0.00028998,7]
[334415152,1723065042427,-500.0,0.00028998,7]
[334415153,1723065042441,-557.81404015,0.00028998,7]
[334415154,1723065042451,-500.0,0.00028998,7]
[334415155,1723065042460,-500.0,0.00028998,7]
[334415156,1723065042472,-1281.57,0.00028998,7]
[334415157,1723065042483,-500.0,0.00028998,7]
[334415158,1723065042494,-581.99492634,0.00028998,7]
[334415159,1723065042503,-1748.59,0.00028998,7]
[334415160,1723065042514,-1195.83,0.00028998,7]
[334415161,1723065042523,-748.64,0.00028998,7]
[334415162,1723065042534,-500.0,0.00028998,7]
[334415163,1723065042546,-700.43,0.00028998,7]
[334415164,1723065042556,-500.0,0.00028998,7]
[334415165,1723065042565,-500.0,0.00028998,7]
[334415166,1723065042575,-500.0,0.00028998,7]
[334415167,1723065042584,-500.0,0.00028998,7]
[334415168,1723065042594,-9153.07,0.00028998,7]
[334415169,1723065042604,-500.0,0.00028998,7]
[334415170,1723065042613,-500.0,0.00028998,7]
[334415171,1723065042622,-528.89,0.00028998,7]
[334415172,1723065042631,-1240.98,0.00028998,7]
[334415173,1723065042642,-500.0,0.00028998,7]
[334415174,1723065042651,-2129.84,0.00028998,7]
[334415175,1723065042661,-500.0,0.00028998,7]
[334415176,1723065042673,-500.0,0.00028998,7]
[334415177,1723065042683,-1476.0,0.00028998,7]
[334415178,1723065042692,-500.0,0.00028998,7]
[334415179,1723065042701,-523.61,0.00028998,7]
[334415180,1723065042710,-500.0,0.00028998,7]
[334415181,1723065042720,-3503.63,0.00028998,7]
[334415182,1723065042730,-500.0,0.00028998,7]
[334415183,1723065042740,-1104.96,0.00028998,7]
[334415184,1723065042749,-500.0,0.00028998,7]
[334415185,1723065042758,-500.0,0.00028998,7]
[334415186,1723065042772,-500.0,0.00028998,7]
[334415187,1723065042782,-500.0,0.00028998,7]
[334415188,1723065042791,-914.09,0.00028998,7]
[334415189,1723065042800,-369.77249009,0.00028998,7]
[334415190,1723065042810,-279.04720732,0.00028998,7]
[334415191,1723065042820,-500.0,0.00028998,7]
[334415192,1723065042832,-2522.83,0.00028998,7]
[334415194,1723065042844,-500.0,0.00028998,7]
[334415195,1723065042855,-500.0,0.00028998,7]
[334415196,1723065042865,-500.0,0.00028998,7]
[334415197,1723065042874,-500.0,0.00028998,7]
[334415198,1723065042884,-500.0,0.00028998,7]
[334415199,1723065042895,-500.0,0.00028998,7]
[334415201,1723065042905,-500.82657347,0.00028998,7]
[334415202,1723065042923,-503.32,0.00028998,7]
[334415203,1723065042932,-501.13023387,0.00028998,7]
[334415204,1723065042942,-500.0,0.00028998,7]
[334415205,1723065042952,-940.21,0.00028998,7]
[334415207,1723065042963,-500.0,0.00028998,7]
[334415209,1723065043137,-500.0,0.00028998,7]
[334415210,1723065043146,-500.0,0.00028998,7]
[334415212,1723065043156,-555.66,0.00028998,7]
[334415213,1723065043165,-513.24,0.00028998,7]
[334415214,1723065043182,-500.0,0.00028998,7]
[334415216,1723065043193,-1281.78,0.00028998,7]
[334415218,1723065043206,-500.0,0.00028998,7]
[334415219,1723065043216,-500.0,0.00028998,7]
[334415220,1723065043225,-831.479607,0.00028998,7]
[334415221,1723065043235,-831.479607,0.00028998,7]
[334415224,1723065043245,-831.479607,0.00028998,7]
[334415226,1723065043254,-831.479607,0.00028998,7]
[334415229,1723065043264,-500.0,0.00028998,7]
[334415231,1723065043273,-831.479607,0.00028998,7]
[334415233,1723065043284,-831.479604,0.00028998,7]
[334415235,1723065043295,-500.0,0.00028998,7]
[334415237,1723065043305,-500.0,0.00028998,2]
[334415239,1723065043315,-500.0,0.00028998,7]
[334415241,1723065043325,-500.0,0.00028998,7]
[334415243,1723065043335,-973.84,0.00028998,7]
[334415245,1723065043345,-503.61,0.00028998,7]
[334415247,1723065043354,-500.0,0.00028998,7]
[334415250,1723065043366,-500.0,0.00028998,7]
[334415252,1723065043376,-583.14,0.00028998,7]
[334415253,1723065043385,-505.16360178,0.00028998,7]
[334415254,1723065043395,-997.03,0.00028998,7]
[334415255,1723065043405,-500.0,0.00028998,7]
[334415256,1723065043414,-500.0,0.00028998,7]
[334415257,1723065043425,-1171.45,0.00028998,7]
[334415258,1723065043434,-176.528033,0.00028999,7]
[334415259,1723065043444,-151.0,0.00028999,7]
[334415260,1723065043454,-81.80813323,0.00028999,7]
[334415261,1723065043475,-418.19186677,0.00028999,7]
[334415262,1723065043484,-512.43,0.00028999,7]
[334415263,1723065043494,-500.0,0.00028999,7]
[334415264,1723065043503,-513.24,0.00028999,7]
[334415265,1723065043514,-500.0,0.00028999,2]
[334415266,1723065043523,-1120.67112424,0.00029,2]
[334415267,1723065043533,-5000.0,0.00029,2]
[334415268,1723065043542,-150.112233,0.00029,7]
[334415269,1723065043551,-1261.75742254,0.00029036,2]
[334415270,1723065043561,-1261.75742254,0.00029104,2]
[334415271,1723065043571,-24501.86293236,0.00029162,3]
[334415298,1723065358934,273.37336231,0.00025,10]
[334415299,1723065367146,273.37336231,0.00025,10]
[334415300,1723065375688,273.37336231,0.00025,10]
[334415301,1723065383610,273.37336231,0.00025,10]
[334415302,1723065391654,273.37336231,0.00025,10]
[334415303,1723065400876,273.37336231,0.00025,10]
[334415304,1723065409415,273.37336231,0.00025,10]
[334415305,1723065417629,273.37336231,0.00025,10]
[334415306,1723065426041,273.37336231,0.00025,10]